fUSD/lending_fUSD_20250823
["ID","MTS","AMOUNT","RATE_DAILY","PERIOD"]
[381063578,1755984648927,-169.78075248,0.00026137,30]
[381063579,1755984648937,-2350.09,0.000263,2]
[381063580,1755984648946,-151.0,0.00026364,2]
[381063581,1755984648955,-170.63411567,0.00026376,2]
[381063582,1755984648965,-946.83186794,0.0002641,4]
[381063583,1755984648974,-956.18840812,0.0002641,4]
[381063584,1755984648984,-771.86444271,0.0002641,4]
[381063585,1755984648993,-169.78075248,0.00026411,30]
[381063586,1755984649002,-260.53,0.00026459,2]
[381063587,1755984649011,-600.0,0.00026471,2]
[381063588,1755984649021,-182.521655,0.00026487,2]
[381063589,1755984649030,-3427.346,0.00026574,13]
[381063590,1755984649039,-189.71,0.00026574,13]
[381063591,1755984649049,-322.6107,0.00026649,2]
[381063592,1755984649058,-160.0,0.00026649,2]
[381063593,1755984649067,-277.35679052,0.00026649,2]
[381063594,1755984649077,-614.98,0.00026676,2]
[381063595,1755984649086,-946.83186794,0.00026688,4]
[381063596,1755984649096,-956.18840812,0.00026688,4]
[381063597,1755984649105,-771.86444271,0.00026688,4]
[381063598,1755984649115,-169.78075248,0.00026712,30]
[381063599,1755984649125,-551.5976509,0.00026762,4]
[381063600,1755984649134,-3288.81,0.000269,7]
[381063601,1755984649144,-99913.34,0.000269,7]
[381063602,1755984649153,-1000.0,0.00026944,2]
[381063603,1755984649163,-946.83186794,0.00026966,4]
[381063604,1755984649172,-956.18840812,0.00026966,4]
[381063605,1755984649182,-771.86444271,0.00026966,4]
[381063606,1755984649191,-169.78075248,0.00026986,30]
[381063607,1755984649200,-212.10093811,0.00026989,7]
[381063608,1755984649209,-844.27675029,0.0002699,3]
[381063609,1755984649220,-212.10093811,0.0002699,3]
[381063610,1755984649229,-151.0,0.00027,7]
[381063611,1755984649238,-212.10093811,0.00027,7]
[381063612,1755984649248,-72000.0,0.00027,2]
[381063613,1755984649257,-207.4,0.00027018,2]
[381063614,1755984649266,-600.0,0.00027019,2]
[381063615,1755984649276,-719.62474549,0.00027044,2]
[381063616,1755984649284,-2000.0,0.00027052,2]
[381063617,1755984649297,-900.0,0.00027063,10]
[381063618,1755984649306,-900.0,0.00027063,10]
[381063619,1755984649316,-900.0,0.00027063,10]
[381063620,1755984649326,-900.0,0.00027063,10]
[381063621,1755984649335,-900.0,0.00027063,10]
[381063622,1755984649344,-900.0,0.00027063,10]
[381063623,1755984649354,-900.0,0.00027063,10]
[381063624,1755984649364,-900.0,0.00027063,10]
[381063625,1755984649375,-646.7313721,0.00027152,2]
[381063626,1755984649384,-946.83186794,0.00027244,4]
[381063627,1755984649393,-956.18840812,0.00027244,4]
[381063628,1755984649402,-771.86444271,0.00027244,4]
[381063629,1755984649412,-1002.01,0.000273,2]
[381063630,1755984649421,-469.06,0.00027316,2]
[381063631,1755984649430,-1385.04,0.00027316,2]
[381063632,1755984649440,-469.06,0.00027316,2]
[381063633,1755984649449,-469.06,0.00027316,2]
[381063634,1755984649458,-301.74,0.0002739,2]
[381063635,1755984649468,-300.0,0.00027397,2]
[381063636,1755984649477,-600.0,0.00027397,80]
[381063637,1755984649486,-1500.0,0.00027397,16]
[381063638,1755984649495,-1425.0,0.00027399,2]
[381063639,1755984649504,-1000.0,0.0002748,2]
[381063640,1755984649514,-946.83186794,0.00027522,4]
[381063641,1755984649524,-956.18840812,0.00027522,4]
[381063642,1755984649533,-771.86444271,0.00027522,4]
[381063643,1755984649542,-880.0,0.00027543,2]
[381063644,1755984649552,-880.0,0.00027557,2]
[381063645,1755984649561,-200.0,0.00027559,2]
[381063646,1755984649571,-600.0,0.00027567,2]
[381063647,1755984649580,-470.81403864,0.00027573,5]
[381063648,1755984649590,-500.0,0.00027573,5]
[381063649,1755984649599,-500.0,0.00027653,2]
[381063650,1755984649609,-947.64527311,0.00027673,5]
[381063651,1755984649618,-1000.0,0.00027694,2]
[381063652,1755984649627,-500.0,0.00027719,15]
[381063653,1755984649637,-302.78715895,0.00027775,2]
[381063654,1755984649646,-15790.6352,0.00027776,2]
[381063655,1755984649655,-500.0,0.00027776,2]
[381063656,1755984649665,-150.0,0.00027776,2]
[381063657,1755984649674,-209.10607332,0.00027776,2]
[381063658,1755984649683,-250.0,0.00027776,2]
[381063659,1755984649692,-500.0,0.00027776,2]
[381063660,1755984649702,-500.0,0.00027776,2]
[381063661,1755984649711,-150.0,0.00027776,2]
[381063662,1755984649721,-150.0,0.00027776,2]
[381063663,1755984649730,-300.0,0.00027776,2]
[381063664,1755984649740,-150.0,0.00027776,2]
[381063665,1755984649749,-150.0,0.00027776,2]
[381063666,1755984649758,-200.0,0.00027776,2]
[381063667,1755984649767,-500.0,0.00027776,2]
[381063668,1755984649777,-150.0,0.00027776,2]
[381063669,1755984649786,-500.0,0.00027776,2]
[381063670,1755984649795,-870.0,0.00027776,2]
[381063671,1755984649805,-500.0,0.00027776,2]
[381063672,1755984649814,-500.0,0.00027776,2]
[381063673,1755984649824,-150.0,0.00027776,2]
[381063674,1755984649836,-1036.47771365,0.000278,2]
[381063675,1755984649845,-753.18446,0.000278,2]
[381063676,1755984649854,-169.17259044,0.000278,2]
[381063677,1755984649864,-946.83,0.000278,4]
[381063678,1755984649873,-956.18,0.000278,4]
[381063679,1755984649882,-771.86,0.000278,4]
[381063680,1755984649892,-206.49362813,0.000278,2]
[381063681,1755984649901,-500.0,0.00027873,5]
[381063682,1755984649911,-500.0,0.00027873,5]
[381063683,1755984649921,-300.0,0.00027879,10]
[381063684,1755984649930,-300.0,0.00027879,10]
[381063685,1755984649940,-300.0,0.00027879,10]
[381063686,1755984649949,-151.0,0.0002788,7]
[381063687,1755984649958,-151.0,0.0002788,7]
[381063688,1755984649968,-151.0,0.0002788,7]
[381063689,1755984649977,-163.429439,0.0002788,7]
[381063690,1755984649986,-180.755778,0.0002788,7]
[381063691,1755984649995,-275.953774,0.0002788,7]
[381063692,1755984650005,-289.032764,0.0002788,7]
[381063693,1755984650014,-151.0,0.0002788,7]
[381063694,1755984650024,-289.032764,0.0002788,7]
[381063695,1755984650034,-487.602329,0.0002788,7]
[381063696,1755984650043,-151.0,0.0002788,7]
[381063697,1755984650052,-289.032764,0.0002788,7]
[381063698,1755984650062,-487.602329,0.0002788,7]
[381063699,1755984650071,-151.0,0.0002788,7]
[381063700,1755984650081,-487.602329,0.0002788,7]
[381063701,1755984650090,-151.0,0.0002788,7]
[381063702,1755984650099,-289.032764,0.0002788,7]
[381063703,1755984650109,-227.112771,0.0002788,7]
[381063704,1755984650118,-487.602329,0.0002788,7]
[381063705,1755984650128,-216.818701,0.0002788,7]
[381063706,1755984650138,-151.0,0.0002788,7]
[381063707,1755984650148,-151.0,0.0002788,7]
[381063708,1755984650157,-227.112771,0.0002788,7]
[381063709,1755984650166,-216.818701,0.0002788,7]
[381063710,1755984650176,-151.0,0.0002788,7]
[381063711,1755984650186,-216.818701,0.0002788,7]
[381063712,1755984650195,-227.112771,0.0002788,7]
[381063713,1755984650205,-216.818701,0.0002788,7]
[381063714,1755984650214,-227.112771,0.0002788,7]
[381063715,1755984650223,-683.02997,0.0002788,7]
[381063716,1755984650233,-151.0,0.0002788,7]
[381063717,1755984650242,-683.02997,0.0002788,7]
[381063718,1755984650252,-151.0,0.0002788,7]
[381063719,1755984650261,-683.02997,0.0002788,7]
[381063720,1755984650270,-151.0,0.0002788,7]
[381063721,1755984650279,-683.02997,0.0002788,7]
[381063722,1755984650289,-151.0,0.0002788,7]
[381063723,1755984650302,-151.0,0.0002788,7]
[381063724,1755984650311,-278.439002,0.0002788,7]
[381063725,1755984650321,-151.0,0.0002788,7]
[381063726,1755984650330,-2520.587804,0.0002788,7]
[381063727,1755984650339,-2520.587804,0.0002788,7]
[381063728,1755984650349,-2520.587804,0.0002788,7]
[381063729,1755984650358,-2520.587804,0.0002788,7]
[381063730,1755984650367,-1444.486767,0.0002788,7]
[381063731,1755984650376,-1444.486767,0.0002788,7]
[381063732,1755984650386,-151.0,0.0002788,7]
[381063733,1755984650395,-1444.486767,0.0002788,7]
[381063734,1755984650404,-151.0,0.0002788,7]
[381063735,1755984650413,-1444.486767,0.0002788,7]
[381063736,1755984650423,-394.917862,0.0002788,7]
[381063737,1755984650432,-394.917862,0.0002788,7]
[381063738,1755984650441,-394.917862,0.0002788,7]
[381063739,1755984650451,-151.0,0.0002788,7]
[381063740,1755984650461,-394.917862,0.0002788,7]
[381063741,1755984650472,-151.0,0.0002788,7]
[381063742,1755984650482,-151.0,0.0002788,7]
[381063743,1755984650494,-215.0,0.00027881,2]
[381063744,1755984650503,-300.0,0.00027889,10]
[381063745,1755984650513,-300.0,0.00027889,10]
[381063746,1755984650524,-300.0,0.00027889,10]
[381063747,1755984650534,-318.0,0.0002789,5]
[381063748,1755984650543,-200.0,0.0002789,3]
[381063749,1755984650553,-844.27675029,0.0002789,3]
[381063750,1755984650563,-536.7006784,0.00027893,2]
[381063751,1755984650573,-481.6631022,0.00027893,2]
[381063752,1755984650582,-1000.0,0.00027899,14]
[381063753,1755984650592,-1000.0,0.00027899,7]
[381063754,1755984650602,-1000.0,0.00027899,21]
[381063755,1755984650612,-397.87489445,0.00027899,10]
[381063756,1755984650623,-300.0,0.00027899,10]
[381063757,1755984650632,-300.0,0.00027899,10]
[381063758,1755984650642,-300.0,0.00027899,10]
[381063759,1755984650652,-113890.82248471,0.000279,3]
[381063760,1755984650662,-289.82753121,0.000279,2]
[381063761,1755984650671,-151.0,0.000279,7]
[381063762,1755984650682,-151.0,0.000279,7]
[381063763,1755984650692,-263.068817,0.000279,7]
[381063764,1755984650702,-151.0,0.000279,7]
[381063765,1755984650712,-151.0,0.000279,7]
[381063766,1755984650722,-151.0,0.000279,7]
[381063767,1755984650732,-151.0,0.000279,7]
[381063768,1755984650742,-429.019738,0.000279,7]
[381063769,1755984650751,-429.019738,0.000279,7]
[381063770,1755984650761,-151.0,0.000279,7]
[381063771,1755984650770,-151.0,0.000279,7]
[381063772,1755984650780,-429.019738,0.000279,7]
[381063773,1755984650789,-151.0,0.000279,7]
[381063774,1755984650800,-151.0,0.000279,7]
[381063775,1755984650809,-151.0,0.000279,7]
[381063776,1755984650820,-151.0,0.000279,7]
[381063777,1755984650831,-274.199986,0.000279,7]
[381063778,1755984650841,-429.019738,0.000279,7]
[381063779,1755984650851,-151.0,0.000279,7]
[381063780,1755984650860,-683.174286,0.000279,7]
[381063781,1755984650870,-151.0,0.000279,7]
[381063782,1755984650879,-274.199986,0.000279,7]
[381063783,1755984650889,-151.0,0.000279,7]
[381063784,1755984650899,-683.174286,0.000279,7]
[381063785,1755984650908,-187.557832,0.000279,7]
[381063786,1755984650918,-274.199986,0.000279,7]
[381063787,1755984650928,-683.174286,0.000279,7]
[381063788,1755984650937,-683.174286,0.000279,7]
[381063789,1755984650947,-151.0,0.000279,7]
[381063790,1755984650956,-274.199986,0.000279,7]
[381063791,1755984650966,-151.0,0.000279,7]
[381063792,1755984650975,-151.0,0.000279,7]
[381063793,1755984650985,-151.0,0.000279,7]
[381063794,1755984650994,-151.0,0.000279,7]
[381063795,1755984651004,-262.309968,0.000279,7]
[381063796,1755984651014,-262.309968,0.000279,7]
[381063797,1755984651023,-262.309968,0.000279,7]
[381063798,1755984651034,-262.309968,0.000279,7]
[381063799,1755984651043,-151.0,0.000279,7]
[381063800,1755984651053,-151.0,0.000279,7]
[381063801,1755984651063,-151.0,0.000279,7]
[381063802,1755984651072,-151.0,0.000279,7]
[381063803,1755984651083,-151.0,0.000279,7]
[381063804,1755984651093,-151.0,0.000279,7]
[381063805,1755984651103,-151.0,0.000279,7]
[381063806,1755984651113,-151.0,0.000279,7]
[381063807,1755984651123,-1650.0,0.00027903,2]
[381063808,1755984651132,-500.0,0.00027913,2]
[381063809,1755984651143,-600.0,0.00027945,5]
[381063810,1755984651152,-221.0,0.00027966,2]
[381063811,1755984651162,-500.0,0.00027973,5]
[381063812,1755984651172,-300.0,0.00027979,10]
[381063813,1755984651182,-300.0,0.00027979,10]
[381063814,1755984651192,-300.0,0.00027979,10]
[381063815,1755984651202,-300.0,0.00027989,10]
[381063816,1755984651212,-300.0,0.00027989,10]
[381063817,1755984651222,-300.0,0.00027989,10]
[381063818,1755984651232,-500.0,0.00027993,15]
[381063819,1755984651242,-279.14,0.00028,2]
[381063820,1755984651253,-2299.999997,0.00028,2]
[381063821,1755984651263,-1000.0,0.00028,2]
[381063822,1755984651273,-160.0,0.00028,2]
[381063823,1755984651283,-160.94775894,0.00028,7]
[381063824,1755984651296,-2171.83255711,0.00028,30]
[381063825,1755984651306,-336.0,0.00028,2]
[381063826,1755984651316,-673.0,0.00028,2]
[381063827,1755984651326,-160.0,0.00028,10]
[381063828,1755984651337,-224.0,0.00028,2]
[381063829,1755984651347,-12905.93863982,0.00028,2]
[381063830,1755984651356,-258.11877279,0.00028,2]
[381063831,1755984651367,-151.0,0.00028,7]
[381063832,1755984651380,-564.506731,0.00028,7]
[381063833,1755984651390,-151.0,0.00028,7]
[381063834,1755984651400,-779.286138,0.00028,7]
[381063835,1755984651410,-564.506731,0.00028,7]
[381063836,1755984651419,-151.0,0.00028,7]
[381063837,1755984651429,-151.0,0.00028,7]
[381063838,1755984651439,-151.0,0.00028,7]
[381063839,1755984651448,-564.506731,0.00028,7]
[381063840,1755984651459,-779.286138,0.00028,7]
[381063841,1755984651469,-151.0,0.00028,7]
[381063842,1755984651479,-151.0,0.00028,7]
[381063843,1755984651489,-859.695571,0.00028,7]
[381063844,1755984651499,-564.506731,0.00028,7]
[381063845,1755984651508,-779.286138,0.00028,7]
[381063846,1755984651518,-151.0,0.00028,7]
[381063847,1755984651528,-859.695571,0.00028,7]
[381063848,1755984651537,-779.286138,0.00028,7]
[381063849,1755984651547,-165.308302,0.00028,7]
[381063850,1755984651557,-859.695571,0.00028,7]
[381063851,1755984651566,-151.0,0.00028,7]
[381063852,1755984651576,-859.695571,0.00028,7]
[381063853,1755984651586,-151.0,0.00028,7]
[381063854,1755984651596,-151.0,0.00028,7]
[381063855,1755984651606,-151.0,0.00028,7]
[381063856,1755984651615,-151.0,0.00028,7]
[381063857,1755984651625,-151.0,0.00028,7]
[381063858,1755984651634,-151.0,0.00028,7]
[381063859,1755984651644,-151.0,0.00028,7]
[381063860,1755984651654,-151.0,0.00028,7]
[381063861,1755984651663,-151.0,0.00028,7]
[381063862,1755984651673,-151.0,0.00028,7]
[381063863,1755984651682,-151.0,0.00028,7]
[381063864,1755984651692,-151.0,0.00028,7]
[381063865,1755984651702,-151.0,0.00028,7]
[381063866,1755984651712,-151.0,0.00028,7]
[381063867,1755984651722,-151.0,0.00028,7]
[381063868,1755984651731,-298.750032,0.00028,7]
[381063869,1755984651741,-844.27675029,0.00028,10]
[381063870,1755984651751,-458.60200496,0.00028,10]
[381063871,1755984651760,-1800.0,0.00028,29]
[381063872,1755984651770,-24899.17874454,0.00028,7]
[381063873,1755984651780,-150.0,0.00028,5]
[381063874,1755984651789,-7605.18,0.00028,7]
[381063875,1755984651799,-1048.41540179,0.00028,30]
[381063876,1755984651809,-4000.0,0.00028,4]
[381063877,1755984651818,-287.61899177,0.00028018,2]
[381063878,1755984651828,-721.12765535,0.00028019,2]
[381063879,1755984651838,-500.0,0.0002805,2]
[381063880,1755984651848,-150.0,0.0002805,2]
[381063881,1755984651858,-500.0,0.0002805,2]
[381063882,1755984651868,-500.0,0.0002805,2]
[381063883,1755984651877,-150.0,0.0002805,2]
[381063884,1755984651888,-300.0,0.0002805,2]
[381063885,1755984651898,-150.0,0.0002805,2]
[381063886,1755984651908,-500.0,0.0002805,2]
[381063887,1755984651919,-150.0,0.0002805,2]
[381063888,1755984651929,-500.0,0.0002805,2]
[381063889,1755984651939,-870.0,0.0002805,2]
[381063890,1755984651949,-500.0,0.0002805,2]
[381063891,1755984651959,-500.0,0.0002805,2]
[381063892,1755984651969,-150.0,0.0002805,2]
[381063893,1755984651979,-150.0,0.00028101,30]
[381063894,1755984651988,-221.0,0.00028111,2]
[381063895,1755984651998,-600.0,0.00028115,2]
[381063896,1755984652008,-150.20043628,0.00028121,5]
[381063897,1755984652018,-221.0,0.00028163,2]
[381063898,1755984652027,-1894.42,0.00028169,30]
[381063899,1755984652037,-332.68,0.00028219,7]
[381063900,1755984652047,-300.0,0.00028219,2]
[381063901,1755984652057,-314.62,0.00028219,2]
[381063902,1755984652067,-150.0,0.00028219,2]
[381063903,1755984652077,-309.02,0.00028219,2]
[381063904,1755984652086,-150.0,0.00028219,2]
[381063905,1755984652096,-150.0,0.00028219,2]
[381063906,1755984652106,-408.48,0.00028219,2]
[381063907,1755984652116,-300.0,0.00028219,2]
[381063908,1755984652126,-150.0,0.00028219,2]
[381063909,1755984652136,-408.48,0.00028219,2]
[381063910,1755984652146,-1077.55,0.00028219,2]
[381063911,1755984652156,-408.48,0.00028219,2]
[381063912,1755984652166,-150.0,0.00028219,2]
[381063913,1755984652176,-1185.08,0.00028219,2]
[381063914,1755984652186,-150.0,0.00028219,2]
[381063915,1755984652196,-1078.22,0.00028219,2]
[381063916,1755984652206,-408.48,0.00028219,2]
[381063917,1755984652215,-347.07,0.00028219,2]
[381063918,1755984652225,-408.48,0.00028219,2]
[381063919,1755984652235,-319.0,0.00028219,2]
[381063920,1755984652245,-150.0,0.00028219,2]
[381063921,1755984652254,-1185.08,0.00028219,2]
[381063922,1755984652264,-347.28,0.00028219,2]
[381063923,1755984652273,-1185.08,0.00028219,2]
[381063924,1755984652283,-288.22,0.00028219,2]
[381063925,1755984652294,-539.5,0.0002824,2]
[381063926,1755984652305,-150.0,0.0002824,2]
[381063927,1755984652315,-173.7,0.0002824,2]
[381063928,1755984652324,-293.13,0.0002824,2]
[381063929,1755984652334,-1185.08,0.0002824,2]
[381063930,1755984652344,-408.37,0.0002824,2]
[381063931,1755984652353,-173.7,0.0002824,2]
[381063932,1755984652363,-150.0,0.00028244,2]
[381063933,1755984652372,-150.0,0.00028244,2]
[381063934,1755984652382,-1078.43,0.00028244,2]
[381063935,1755984652392,-500.0,0.00028267,15]
[381063936,1755984652402,-880.0,0.00028272,7]
[381063937,1755984652411,-500.0,0.00028324,2]
[381063938,1755984652421,-200.0,0.00028324,2]
[381063939,1755984652430,-500.0,0.00028324,2]
[381063940,1755984652440,-500.0,0.00028324,2]
[381063941,1755984652450,-150.0,0.00028324,2]
[381063942,1755984652460,-300.0,0.00028324,2]
[381063943,1755984652470,-250.0,0.00028324,2]
[381063944,1755984652479,-500.0,0.00028324,2]
[381063945,1755984652490,-250.0,0.00028324,2]
[381063946,1755984652500,-500.0,0.00028324,2]
[381063947,1755984652510,-870.0,0.00028324,2]
[381063948,1755984652519,-500.0,0.00028324,2]
[381063949,1755984652529,-500.0,0.00028324,2]
[381063950,1755984652538,-250.0,0.00028324,2]
[381063951,1755984652548,-880.0,0.00028328,2]
[381063952,1755984652558,-500.0,0.00028378,2]
[381063953,1755984652568,-151.0,0.00028384,7]
[381063954,1755984652577,-151.0,0.00028384,7]
[381063955,1755984652587,-289.032764,0.00028384,7]
[381063956,1755984652597,-151.0,0.00028384,7]
[381063957,1755984652606,-289.032764,0.00028384,7]
[381063958,1755984652615,-487.602329,0.00028384,7]
[381063959,1755984652625,-151.0,0.00028384,7]
[381063960,1755984652634,-289.032764,0.00028384,7]
[381063961,1755984652644,-487.602329,0.00028384,7]
[381063962,1755984652653,-151.0,0.00028384,7]
[381063963,1755984652663,-487.602329,0.00028384,7]
[381063964,1755984652672,-289.032764,0.00028384,7]
[381063965,1755984652682,-151.0,0.00028384,7]
[381063966,1755984652691,-227.112771,0.00028384,7]
[381063967,1755984652700,-487.602329,0.00028384,7]
[381063968,1755984652710,-216.818701,0.00028384,7]
[381063969,1755984652720,-151.0,0.00028384,7]
[381063970,1755984652729,-151.0,0.00028384,7]
[381063971,1755984652738,-227.112771,0.00028384,7]
[381063972,1755984652748,-216.818701,0.00028384,7]
[381063973,1755984652757,-151.0,0.00028384,7]
[381063974,1755984652767,-216.818701,0.00028384,7]
[381063975,1755984652776,-227.112771,0.00028384,7]
[381063976,1755984652786,-216.818701,0.00028384,7]
[381063977,1755984652795,-227.112771,0.00028384,7]
[381063978,1755984652805,-683.02997,0.00028384,7]
[381063979,1755984652815,-151.0,0.00028384,7]
[381063980,1755984652825,-683.02997,0.00028384,7]
[381063981,1755984652836,-151.0,0.00028384,7]
[381063982,1755984652847,-683.02997,0.00028384,7]
[381063983,1755984652863,-151.0,0.00028384,7]
[381063984,1755984652874,-683.02997,0.00028384,7]
[381063985,1755984652886,-269.551077,0.00028384,7]
[381063986,1755984652897,-151.0,0.00028384,7]
[381063987,1755984652909,-151.0,0.00028384,7]
[381063988,1755984652920,-2520.587804,0.00028384,7]
[381063989,1755984652932,-2520.587804,0.00028384,7]
[381063990,1755984653198,-2520.587804,0.00028384,7]
[381063991,1755984653208,-2520.587804,0.00028384,7]
[381063992,1755984653218,-1444.486767,0.00028384,7]
[381063993,1755984653228,-1444.486767,0.00028384,7]
[381063994,1755984653237,-151.0,0.00028384,7]
[381063995,1755984653247,-1444.486767,0.00028384,7]
[381063996,1755984653256,-151.0,0.00028384,7]
[381063997,1755984653265,-1444.486767,0.00028384,7]
[381063998,1755984653276,-394.917862,0.00028384,7]
[381063999,1755984653285,-394.917862,0.00028384,7]
[381064000,1755984653295,-394.917862,0.00028384,7]
[381064001,1755984653307,-151.0,0.00028384,7]
[381064002,1755984653316,-394.917862,0.00028384,7]
[381064003,1755984653325,-156.015874,0.00028384,7]
[381064004,1755984653336,-151.0,0.00028384,7]
[381064005,1755984653347,-151.0,0.00028384,7]
[381064006,1755984653356,-151.0,0.00028384,7]
[381064007,1755984653366,-151.0,0.00028384,7]
[381064008,1755984653378,-151.0,0.00028384,7]
[381064009,1755984653388,-151.0,0.00028384,7]
[381064010,1755984653398,-151.0,0.00028384,7]
[381064011,1755984653407,-151.0,0.00028384,7]
[381064012,1755984653417,-151.0,0.00028384,7]
[381064013,1755984653427,-4416.695542,0.00028384,7]
[381064014,1755984653436,-151.0,0.00028384,7]
[381064015,1755984653445,-4416.695542,0.00028384,7]
[381064016,1755984653454,-4416.695542,0.00028384,7]
[381064017,1755984653464,-4416.69554,0.00028384,7]
[381064018,1755984653473,-151.0,0.00028384,7]
[381064019,1755984653483,-10857.52683174,0.000284,2]
[381064020,1755984653492,-3288.81,0.000284,7]
[381064021,1755984653502,-86884.13663839,0.000284,7]
[381064022,1755984654281,-1207.02608116,0.000284,7]
[381064023,1755984655626,-651.0,0.000249,2]
[381064024,1755984655827,-1194.9758794,0.000249,2]
[381064025,1755984656627,-1007.64868596,0.000249,2]
[381064026,1755984656840,-974.9999998,0.000249,2]
[381064027,1755984657000,-5667.28508308,0.000249,2]
[381064028,1755984657012,-1057.5416785,0.000249,2]
[381064029,1755984657140,-458.60200496,0.000247,2]
[381064030,1755984657151,-7147.9526862,0.000249,2]
[381064031,1755984657161,-17701.40401292,0.00025597,3]
[381064032,1755984657172,-17701.40401292,0.00026293,5]
[381064033,1755984657183,-17701.40401292,0.0002699,6]
[381064034,1755984657194,-17701.40401292,0.00027687,8]
[381064035,1755984657205,-17701.40401292,0.00028384,9]
[381064036,1755984657217,-11822.17728045,0.000284,7]
[381064037,1755984657227,-381.016136,0.000284,7]
[381064038,1755984657238,-381.016136,0.000284,7]
[381064039,1755984657249,-211.767634,0.000284,7]
[381064040,1755984657260,-381.016136,0.000284,7]
[381064041,1755984657271,-211.767634,0.000284,7]
[381064042,1755984657282,-381.016132,0.000284,7]
[381064043,1755984657293,-211.767634,0.000284,7]
[381064044,1755984657309,-211.767626,0.000284,7]
[381064045,1755984657320,-151.0,0.000284,7]
[381064046,1755984657331,-405.249616,0.000284,7]
[381064047,1755984657344,-151.0,0.000284,7]
[381064048,1755984657354,-405.249616,0.000284,7]
[381064049,1755984657364,-151.0,0.000284,7]
[381064050,1755984657376,-151.0,0.000284,7]
[381064051,1755984657387,-405.249616,0.000284,7]
[381064052,1755984657397,-151.0,0.000284,7]
[381064053,1755984657408,-405.249616,0.000284,7]
[381064054,1755984657418,-742.629924,0.000284,7]
[381064055,1755984657429,-787.714598,0.000284,7]
[381064056,1755984657439,-1443.148898,0.000284,7]
[381064057,1755984657450,-742.629924,0.000284,7]
[381064058,1755984657460,-787.714598,0.000284,7]
[381064059,1755984657471,-742.629924,0.000284,7]
[381064060,1755984657481,-787.714598,0.000284,7]
[381064061,1755984657496,-250.208065,0.000284,7]
[381064062,1755984657516,-742.629932,0.000284,7]
[381064063,1755984657530,-787.714594,0.000284,7]
[381064064,1755984657547,-250.208065,0.000284,7]
[381064065,1755984657567,-250.208065,0.000284,7]
[381064066,1755984657581,-151.0,0.000284,7]
[381064067,1755984657597,-250.208069,0.000284,7]
[381064068,1755984657614,-1443.148898,0.000284,7]
[381064069,1755984657633,-151.0,0.000284,7]
[381064070,1755984657650,-1443.148898,0.000284,7]
[381064071,1755984657666,-151.0,0.000284,7]
[381064072,1755984657684,-1443.148898,0.000284,7]
[381064073,1755984657699,-151.0,0.000284,7]
[381064074,1755984657715,-151.0,0.000284,7]
[381064075,1755984657727,-162.89964,0.000284,7]
[381064076,1755984657746,-162.89964,0.000284,7]
[381064077,1755984657757,-162.89964,0.000284,7]